fUST/lending_fUST_20250901
["ID","MTS","AMOUNT","RATE_DAILY","PERIOD"]
[382661596,1756698657606,-151.0,0.00016575,2]
[382661597,1756698657616,-151.0,0.00016575,2]
[382661598,1756698657626,-151.0,0.00016575,2]
[382661599,1756698657635,-151.464156,0.00016575,2]
[382661600,1756698657646,-151.0,0.000166,2]
[382661601,1756698657657,-480.0,0.00016646,2]
[382661602,1756698657667,-480.0,0.00016646,2]
[382661603,1756698657676,-480.0,0.00016646,2]
[382661604,1756698657685,-775.81,0.00016646,2]
[382661605,1756698657695,-480.0,0.00016646,2]
[382661606,1756698657704,-1107.17,0.00016646,2]
[382661607,1756698657714,-480.0,0.00016647,2]
[382661608,1756698657724,-888.74,0.00016647,2]
[382661609,1756698657733,-480.0,0.00016647,2]
[382661610,1756698657744,-480.0,0.00016647,2]
[382661611,1756698657754,-480.0,0.00016647,2]
[382661612,1756698657764,-480.0,0.00016647,2]
[382661613,1756698657773,-480.0,0.00016647,2]
[382661614,1756698657782,-542.74,0.00016647,2]
[382661615,1756698657792,-151.0,0.000167,2]
[382661616,1756698657801,-151.0,0.000167,2]
[382661617,1756698657812,-922.0,0.00016711,2]
[382661618,1756698657822,-1000.0,0.00016721,2]
[382661619,1756698657831,-1000.0,0.00016721,2]
[382661620,1756698657840,-1000.0,0.00016721,2]
[382661621,1756698657851,-1000.0,0.00016721,2]
[382661622,1756698657861,-262.32124587,0.00016721,2]
[382661623,1756698657870,-1000.0,0.00016721,2]
[382661624,1756698657879,-1000.0,0.00016721,2]
[382661625,1756698657888,-1000.0,0.00016721,2]
[382661626,1756698657898,-1062.38897382,0.00016721,2]
[382661627,1756698657907,-1000.0,0.00016721,2]
[382661628,1756698657917,-409.94293439,0.00016721,2]
[382661629,1756698657926,-1000.0,0.00016721,2]
[382661630,1756698657936,-390.26996667,0.00016721,2]
[382661631,1756698657953,-1000.0,0.00016721,2]
[382661632,1756698657962,-922.0,0.00016723,2]
[382661633,1756698657972,-151.389909,0.00016726,2]
[382661634,1756698657982,-3327.01,0.00016726,2]
[382661635,1756698657992,-588.93,0.00016726,2]
[382661636,1756698658001,-1361.19,0.00016726,2]
[382661637,1756698658011,-480.0,0.00016726,2]
[382661638,1756698658021,-4714.97,0.00016726,2]
[382661639,1756698658031,-740.37,0.00016726,2]
[382661640,1756698658045,-1102.76,0.00016726,2]
[382661641,1756698658054,-4873.15,0.00016726,2]
[382661642,1756698658064,-4621.05,0.00016726,2]
[382661643,1756698658074,-1926.67,0.00016726,2]
[382661644,1756698658085,-480.0,0.00016726,2]
[382661645,1756698658095,-541.23,0.00016726,2]
[382661646,1756698658104,-480.0,0.00016726,2]
[382661647,1756698658115,-1405.48,0.00016726,2]
[382661648,1756698658125,-3234.33,0.00016726,2]
[382661649,1756698658134,-922.0,0.00016727,2]
[382661650,1756698658144,-922.0,0.00016736,2]
[382661651,1756698658156,-542.89,0.00016747,2]
[382661652,1756698658166,-480.0,0.00016747,2]
[382661653,1756698658175,-937.06,0.00016747,2]
[382661654,1756698658185,-480.0,0.00016747,2]
[382661655,1756698658195,-480.0,0.00016747,2]
[382661656,1756698658205,-617.30125764,0.00016747,2]
[382661657,1756698658235,-576.22,0.00016747,2]
[382661658,1756698658245,-760.89,0.00016747,2]
[382661659,1756698658256,-501.77,0.00016747,2]
[382661660,1756698658268,-1197.04,0.00016747,2]
[382661661,1756698658278,-480.0,0.00016747,2]
[382661662,1756698658287,-480.0,0.00016747,2]
[382661663,1756698658297,-480.0,0.00016747,2]
[382661664,1756698658307,-480.0,0.00016747,2]
[382661665,1756698658317,-480.0,0.00016747,2]
[382661666,1756698658327,-480.0,0.00016747,2]
[382661667,1756698658336,-480.0,0.00016747,2]
[382661668,1756698658346,-480.0,0.00016747,2]
[382661669,1756698658355,-1028.93,0.00016747,2]
[382661670,1756698658368,-480.0,0.00016747,2]
[382661671,1756698658377,-1145.66,0.00016747,2]
[382661672,1756698658387,-480.0,0.00016747,2]
[382661673,1756698658398,-480.0,0.00016747,2]
[382661674,1756698658407,-1103.54,0.00016747,2]
[382661675,1756698658417,-480.0,0.00016747,2]
[382661676,1756698658426,-480.0,0.00016747,2]
[382661677,1756698658436,-1023.86,0.00016747,2]
[382661678,1756698658447,-480.0,0.00016747,2]
[382661679,1756698658456,-766.44,0.00016747,2]
[382661680,1756698658466,-480.0,0.00016747,2]
[382661681,1756698658475,-524.7,0.00016747,2]
[382661682,1756698658485,-1031.4,0.00016747,2]
[382661683,1756698658494,-480.0,0.00016747,2]
[382661684,1756698658503,-1112.37,0.00016747,2]
[382661685,1756698658512,-716.09,0.00016747,2]
[382661686,1756698658522,-531.45,0.00016747,2]
[382661687,1756698658531,-151.0,0.00016747,2]
[382661688,1756698658541,-151.0,0.00016747,2]
[382661689,1756698658550,-480.0,0.00016747,2]
[382661690,1756698658560,-480.0,0.00016747,2]
[382661691,1756698658570,-989.83,0.00016747,2]
[382661692,1756698658580,-1003.19,0.00016747,2]
[382661693,1756698658590,-480.0,0.00016747,2]
[382661694,1756698658601,-1038.38,0.00016747,2]
[382661695,1756698658611,-480.0,0.00016747,2]
[382661696,1756698658622,-480.0,0.00016747,2]
[382661697,1756698658635,-480.0,0.00016747,2]
[382661698,1756698658645,-823.01,0.00016747,2]
[382661699,1756698658654,-480.0,0.00016747,2]
[382661700,1756698658663,-1188.28,0.00016747,2]
[382661701,1756698658672,-480.0,0.00016747,2]
[382661702,1756698658682,-543.66,0.00016747,2]
[382661703,1756698658691,-958.25,0.00016747,2]
[382661704,1756698658701,-689.14,0.00016747,2]
[382661705,1756698658710,-726.77,0.00016747,2]
[382661706,1756698658720,-1267.17,0.00016747,2]
[382661707,1756698658729,-480.0,0.00016747,2]
[382661708,1756698658738,-984.8,0.00016747,2]
[382661709,1756698658747,-575.05,0.00016747,2]
[382661710,1756698658756,-480.0,0.00016747,2]
[382661711,1756698658766,-480.0,0.00016747,2]
[382661712,1756698658776,-480.0,0.00016747,2]
[382661713,1756698658786,-151.0,0.00016747,2]
[382661714,1756698658796,-564.48,0.00016747,2]
[382661715,1756698658807,-749.95,0.00016747,2]
[382661716,1756698658816,-886.93,0.00016747,2]
[382661717,1756698658826,-153.302851,0.00016747,2]
[382661718,1756698658835,-1010.1,0.00016747,2]
[382661719,1756698658845,-480.0,0.00016747,2]
[382661720,1756698658855,-1422.64,0.00016747,2]
[382661721,1756698658866,-151.0,0.00016747,2]
[382661722,1756698658875,-151.0,0.00016747,2]
[382661723,1756698658885,-151.0,0.00016747,2]
[382661724,1756698658895,-480.0,0.00016747,2]
[382661725,1756698658906,-244.533514,0.00016747,2]
[382661726,1756698658915,-480.0,0.00016747,2]
[382661727,1756698658925,-828.01,0.00016747,2]
[382661728,1756698658936,-480.0,0.00016747,2]
[382661729,1756698658945,-486.34,0.00016747,2]
[382661730,1756698658954,-480.0,0.00016747,2]
[382661731,1756698658964,-480.0,0.00016747,2]
[382661732,1756698658973,-666.57,0.00016747,2]
[382661733,1756698658982,-480.0,0.00016747,2]
[382661734,1756698658991,-160.604832,0.00016747,2]
[382661735,1756698659000,-160.604832,0.00016747,2]
[382661736,1756698659009,-608.43,0.00016747,2]
[382661737,1756698659018,-160.604832,0.00016747,2]
[382661738,1756698659028,-1388.5,0.00016747,2]
[382661739,1756698659041,-160.604832,0.00016747,2]
[382661740,1756698659051,-480.0,0.00016747,2]
[382661741,1756698659060,-1140.41,0.00016747,2]
[382661742,1756698659069,-153.44143,0.00016747,2]
[382661743,1756698659078,-637.91,0.00016747,2]
[382661744,1756698659087,-957.9,0.00016747,2]
[382661745,1756698659096,-578.69,0.00016747,2]
[382661746,1756698659106,-736.6,0.00016747,2]
[382661747,1756698659117,-1186.87,0.00016747,2]
[382661748,1756698659126,-319.73086339,0.00016747,2]
[382661749,1756698659135,-629.35,0.00016747,2]
[382661750,1756698659145,-480.0,0.00016747,2]
[382661751,1756698659155,-654.54,0.00016747,2]
[382661752,1756698659164,-156.210329,0.00016747,2]
[382661753,1756698659173,-543.73,0.00016747,2]
[382661754,1756698659183,-551.46,0.00016747,2]
[382661755,1756698659193,-151.0,0.00016747,2]
[382661756,1756698659203,-151.0,0.00016747,2]
[382661757,1756698659212,-151.0,0.00016747,2]
[382661758,1756698659222,-480.0,0.00016747,2]
[382661759,1756698659231,-706.3,0.00016747,2]
[382661760,1756698659240,-151.0,0.00016747,2]
[382661761,1756698659249,-151.0,0.00016747,2]
[382661762,1756698659259,-1235.23,0.00016747,2]
[382661763,1756698659268,-480.0,0.00016747,2]
[382661764,1756698659279,-480.0,0.00016747,2]
[382661765,1756698659288,-487.7,0.00016747,2]
[382661766,1756698659297,-480.0,0.00016747,2]
[382661767,1756698659307,-672.25,0.00016747,2]
[382661768,1756698659316,-480.0,0.00016747,2]
[382661769,1756698659325,-480.0,0.00016747,2]
[382661770,1756698659335,-817.97,0.00016747,2]
[382661771,1756698659344,-790.18,0.00016747,2]
[382661772,1756698659354,-276.040837,0.00016747,2]
[382661773,1756698659364,-1017.43,0.00016747,2]
[382661774,1756698659373,-213.907037,0.00016747,2]
[382661775,1756698659383,-213.907037,0.00016747,2]
[382661776,1756698659393,-151.0,0.00016747,2]
[382661777,1756698659402,-213.907037,0.00016747,2]
[382661778,1756698659412,-480.0,0.00016748,2]
[382661779,1756698659421,-484.44,0.00016748,2]
[382661780,1756698659430,-480.0,0.00016748,2]
[382661781,1756698659439,-524.64,0.00016748,2]
[382661782,1756698659449,-480.0,0.00016748,2]
[382661783,1756698659458,-480.0,0.00016748,2]
[382661784,1756698659467,-1097.43,0.00016748,2]
[382661785,1756698659477,-480.0,0.00016748,2]
[382661786,1756698659486,-487.37,0.00016748,2]
[382661787,1756698659495,-480.0,0.00016748,2]
[382661788,1756698659504,-480.0,0.00016748,2]
[382661789,1756698659514,-480.0,0.00016748,2]
[382661790,1756698659523,-1017.23,0.00016748,2]
[382661791,1756698659532,-480.0,0.00016748,2]
[382661792,1756698659541,-799.51,0.00016748,2]
[382661793,1756698659551,-480.0,0.00016748,2]
[382661794,1756698659560,-480.0,0.00016748,2]
[382661795,1756698659569,-602.11,0.00016748,2]
[382661796,1756698659578,-480.0,0.00016748,2]
[382661797,1756698659587,-480.0,0.00016748,2]
[382661798,1756698659597,-480.0,0.00016748,2]
[382661799,1756698659606,-480.0,0.00016748,2]
[382661800,1756698659616,-436.92971865,0.00016748,2]
[382661801,1756698659625,-480.0,0.00016748,2]
[382661802,1756698659634,-647.77,0.00016748,2]
[382661803,1756698659644,-480.0,0.00016748,2]
[382661804,1756698659653,-480.0,0.00016748,2]
[382661805,1756698659662,-480.0,0.00016748,2]
[382661806,1756698659672,-480.0,0.00016748,2]
[382661807,1756698659681,-480.0,0.00016748,2]
[382661808,1756698659690,-490.04034868,0.00016748,2]
[382661809,1756698659699,-480.0,0.00016748,2]
[382661810,1756698659709,-480.0,0.00016748,2]
[382661811,1756698659718,-480.0,0.00016748,2]
[382661812,1756698659727,-480.0,0.00016748,2]
[382661813,1756698659737,-153.355312,0.00016748,2]
[382661814,1756698659746,-480.0,0.00016748,2]
[382661815,1756698659756,-480.0,0.00016748,2]
[382661816,1756698659765,-480.0,0.00016748,2]
[382661817,1756698659774,-480.0,0.00016748,2]
[382661818,1756698659783,-482.26617379,0.00016748,2]
[382661819,1756698659793,-480.0,0.00016748,2]
[382661820,1756698659802,-480.0,0.00016748,2]
[382661821,1756698659811,-370.47807398,0.00016748,2]
[382661822,1756698659820,-480.0,0.00016748,2]
[382661823,1756698659829,-715.24,0.00016748,2]
[382661824,1756698659839,-480.0,0.00016748,2]
[382661825,1756698659848,-151.0,0.00016748,2]
[382661826,1756698659857,-151.0,0.00016748,2]
[382661827,1756698659867,-151.0,0.00016748,2]
[382661828,1756698659876,-480.0,0.00016748,2]
[382661829,1756698659885,-151.0,0.00016748,2]
[382661830,1756698659895,-185.501479,0.00016748,2]
[382661831,1756698659904,-480.0,0.00016748,2]
[382661832,1756698659914,-157.92674,0.00016748,2]
[382661833,1756698659923,-157.92674,0.00016748,2]
[382661834,1756698659933,-480.0,0.00016748,2]
[382661835,1756698659944,-157.92674,0.00016748,2]
[382661836,1756698659954,-157.92674,0.00016748,2]
[382661837,1756698659963,-480.0,0.00016748,2]
[382661838,1756698659973,-809.58,0.00016748,2]
[382661839,1756698659983,-887.12,0.00016748,2]
[382661840,1756698659992,-151.0,0.00016748,2]
[382661841,1756698660001,-480.0,0.00016748,2]
[382661842,1756698660011,-543.41,0.00016748,2]
[382661843,1756698660021,-480.0,0.00016748,2]
[382661844,1756698660031,-480.0,0.00016748,2]
[382661845,1756698660046,-480.0,0.00016748,2]
[382661846,1756698660056,-480.0,0.00016748,2]
[382661847,1756698660066,-480.0,0.00016748,2]
[382661848,1756698660076,-1178.81,0.00016748,2]
[382661849,1756698660087,-879.22,0.00016748,2]
[382661850,1756698660097,-480.0,0.00016748,2]
[382661851,1756698660107,-480.0,0.00016748,2]
[382661852,1756698660118,-543.27,0.00016748,2]
[382661853,1756698660128,-500.0,0.00016748,2]
[382661854,1756698660138,-151.0,0.00016748,2]
[382661855,1756698660147,-191.938504,0.00016748,2]
[382661856,1756698660157,-151.0,0.00016748,2]
[382661857,1756698660167,-318.72120526,0.00016748,2]
[382661858,1756698660178,-480.0,0.00016748,2]
[382661859,1756698660187,-480.0,0.00016748,2]
[382661860,1756698660197,-480.0,0.00016748,2]
[382661861,1756698660208,-151.0,0.00016748,2]
[382661862,1756698660218,-151.0,0.00016748,2]
[382661863,1756698660227,-151.0,0.00016748,2]
[382661864,1756698660239,-480.0,0.00016748,2]
[382661865,1756698660249,-159.342596,0.00016748,2]
[382661866,1756698660259,-159.342596,0.00016748,2]
[382661867,1756698660269,-159.342596,0.00016748,2]
[382661868,1756698660279,-159.342596,0.00016748,2]
[382661869,1756698660289,-725.39,0.00016748,2]
[382661870,1756698660299,-151.0,0.00016748,2]
[382661871,1756698660309,-274.67077006,0.00016748,2]
[382661872,1756698660324,-661.15,0.00016748,2]
[382661873,1756698660334,-1023.05,0.00016748,2]
[382661874,1756698660345,-480.0,0.00016748,2]
[382661875,1756698660355,-654.22,0.00016748,2]
[382661876,1756698660366,-557.18,0.00016748,2]
[382661877,1756698660377,-151.0,0.00016748,2]
[382661878,1756698660387,-480.0,0.00016748,2]
[382661879,1756698660398,-151.0,0.00016748,2]
[382661880,1756698660409,-488.71,0.00016748,2]
[382661881,1756698660419,-480.0,0.00016748,2]
[382661882,1756698660429,-480.0,0.00016748,2]
[382661883,1756698660442,-480.0,0.00016748,2]
[382661884,1756698660451,-480.0,0.00016748,2]
[382661885,1756698660461,-480.0,0.00016748,2]
[382661886,1756698660471,-909.72,0.00016748,2]
[382661887,1756698660480,-480.0,0.00016748,2]
[382661888,1756698660490,-951.76,0.00016748,2]
[382661889,1756698660499,-480.0,0.00016748,2]
[382661890,1756698660509,-641.9,0.00016748,2]
[382661891,1756698660519,-987.58,0.00016748,2]
[382661892,1756698660532,-480.0,0.00016748,2]
[382661893,1756698660544,-623.68467902,0.00016748,2]
[382661894,1756698660554,-480.0,0.00016748,2]
[382661895,1756698660565,-480.0,0.00016748,2]
[382661896,1756698660736,-535.19,0.00016748,2]
[382661897,1756698660746,-920.63,0.00016748,2]
[382661898,1756698660755,-480.0,0.00016748,2]
[382661899,1756698660764,-1658.98,0.00016748,2]
[382661900,1756698660774,-480.0,0.00016748,2]
[382661901,1756698660784,-480.0,0.00016748,2]
[382661902,1756698660794,-480.0,0.00016748,2]
[382661903,1756698660803,-151.0,0.00016748,2]
[382661904,1756698660813,-206.140437,0.00016748,2]
[382661905,1756698660822,-480.0,0.00016748,2]
[382661906,1756698660832,-151.0,0.00016748,2]
[382661907,1756698660842,-480.0,0.00016748,2]
[382661908,1756698660851,-278.677164,0.00016748,2]
[382661909,1756698660861,-278.677164,0.00016748,2]
[382661910,1756698660871,-278.677164,0.00016748,2]
[382661911,1756698660881,-278.677164,0.00016748,2]
[382661912,1756698660891,-480.0,0.00016748,2]
[382661913,1756698660901,-669.76,0.00016748,2]
[382661914,1756698660910,-657.94,0.00016748,2]
[382661915,1756698660920,-480.0,0.00016748,2]
[382661916,1756698660930,-480.0,0.00016748,2]
[382661917,1756698660940,-480.0,0.00016748,2]
[382661918,1756698660950,-559.48,0.00016748,2]
[382661919,1756698660959,-480.0,0.00016748,2]
[382661920,1756698660970,-1351.81,0.00016748,2]
[382661921,1756698660980,-480.0,0.00016748,2]
[382661922,1756698660989,-480.0,0.00016748,2]
[382661923,1756698660999,-617.74,0.00016748,2]
[382661924,1756698661008,-480.0,0.00016748,2]
[382661925,1756698661018,-480.0,0.00016748,2]
[382661926,1756698661028,-488.84,0.00016748,2]
[382661927,1756698661039,-480.0,0.00016748,2]
[382661928,1756698661050,-794.32,0.00016748,2]
[382661929,1756698661059,-480.0,0.00016748,2]
[382661930,1756698661069,-806.86,0.00016748,2]
[382661931,1756698661079,-480.0,0.00016748,2]
[382661932,1756698661089,-826.34,0.00016748,2]
[382661933,1756698661099,-356.8862492,0.00016748,2]
[382661934,1756698661109,-922.0,0.00016748,2]
[382661935,1756698661120,-500.0,0.00016773,2]
[382661936,1756698661130,-464.09771619,0.00016773,2]
[382661937,1756698661139,-500.0,0.00016773,2]
[382661938,1756698661148,-504.03190973,0.00016773,2]
[382661939,1756698661158,-500.0,0.00016773,2]
[382661940,1756698661168,-500.0,0.00016773,2]
[382661941,1756698661177,-500.0,0.00016773,2]
[382661942,1756698661188,-500.0,0.00016773,2]
[382661943,1756698661199,-3000.0,0.0001678,2]
[382661944,1756698661209,-278.35488646,0.0001678,2]
[382661945,1756698661219,-151.0,0.000168,2]
[382661946,1756698661229,-151.0,0.00016808,2]
[382661947,1756698661238,-409.0,0.00016808,2]
[382661948,1756698661248,-423.777,0.00016808,2]
[382661949,1756698661257,-975.0,0.00016808,2]
[382661950,1756698661266,-632.0,0.00016808,2]
[382661951,1756698661276,-2153.0,0.00016808,2]
[382661952,1756698661285,-241.10112319,0.00016838,2]
[382661953,1756698661295,-500.0,0.00016839,3]
[382661954,1756698661306,-500.0,0.00016839,3]
[382661955,1756698661316,-252.84445179,0.00016839,3]
[382661956,1756698661325,-1493.0,0.00016839,3]
[382661957,1756698661335,-480.0,0.00016843,2]
[382661958,1756698661344,-523.29,0.00016843,2]
[382661959,1756698661354,-697.94,0.00016843,2]
[382661960,1756698661365,-925.83,0.00016843,2]
[382661961,1756698661374,-480.0,0.00016843,2]
[382661962,1756698661383,-480.0,0.00016843,2]
[382661963,1756698661392,-2147.31,0.00016843,2]
[382661964,1756698661402,-480.0,0.00016843,2]
[382661965,1756698661412,-480.0,0.00016843,2]
[382661966,1756698661423,-511.69,0.00016843,2]
[382661967,1756698661432,-522.98,0.00016843,2]
[382661968,1756698661442,-594.8,0.00016843,2]
[382661969,1756698661451,-1144.22,0.00016843,2]
[382661970,1756698661461,-480.0,0.00016843,2]
[382661971,1756698661471,-647.07,0.00016843,2]
[382661972,1756698661481,-480.0,0.00016843,2]
[382661973,1756698661490,-523.13,0.00016843,2]
[382661974,1756698661499,-480.0,0.00016843,2]
[382661975,1756698661508,-1985.9,0.00016843,2]
[382661976,1756698661518,-614.68,0.00016843,2]
[382661977,1756698661527,-480.0,0.00016843,2]
[382661978,1756698661537,-529.5,0.00016843,2]
[382661979,1756698661547,-1673.09,0.00016843,2]
[382661980,1756698661556,-480.0,0.00016843,2]
[382661981,1756698661566,-876.96,0.00016843,2]
[382661982,1756698661575,-166.26133616,0.00016847,2]
[382661983,1756698661585,-480.0,0.00016847,2]
[382661984,1756698661594,-480.0,0.00016847,2]
[382661985,1756698661604,-480.0,0.00016847,2]
[382661986,1756698661614,-480.0,0.00016847,2]
[382661987,1756698661624,-480.0,0.00016847,2]
[382661988,1756698661633,-729.96,0.00016847,2]
[382661989,1756698661642,-405.44511087,0.00016847,2]
[382661990,1756698661652,-480.0,0.00016847,2]
[382661991,1756698661662,-192.36864164,0.00016847,2]
[382661992,1756698661671,-480.0,0.00016847,2]
[382661993,1756698661681,-480.0,0.00016847,2]
[382661994,1756698661691,-480.0,0.00016847,2]
[382661995,1756698661700,-480.0,0.00016847,2]
[382661996,1756698661710,-493.77312248,0.00016847,2]
[382661997,1756698661720,-480.0,0.00016847,2]
[382661998,1756698661729,-480.0,0.00016847,2]
[382661999,1756698661738,-480.0,0.00016847,2]
[382662000,1756698661748,-480.0,0.00016847,2]
[382662001,1756698661757,-480.0,0.00016847,2]
[382662002,1756698661767,-824.76,0.00016847,2]
[382662003,1756698661778,-480.0,0.00016847,2]
[382662004,1756698661788,-480.0,0.00016847,2]
[382662005,1756698661798,-480.0,0.00016847,2]
[382662006,1756698661808,-480.0,0.00016847,2]
[382662007,1756698661818,-817.07,0.00016847,2]
[382662008,1756698661829,-480.0,0.00016847,2]
[382662009,1756698661839,-480.0,0.00016847,2]
[382662010,1756698661848,-852.22,0.00016847,2]
[382662011,1756698661858,-480.0,0.00016847,2]
[382662012,1756698661870,-480.0,0.00016847,2]
[382662013,1756698661881,-480.0,0.00016847,2]
[382662014,1756698661891,-480.0,0.00016847,2]
[382662015,1756698661901,-1177.63,0.00016847,2]
[382662016,1756698661910,-480.0,0.00016847,2]
[382662017,1756698661921,-480.0,0.00016847,2]
[382662018,1756698661931,-559.92,0.00016847,2]
[382662019,1756698661940,-480.0,0.00016847,2]
[382662020,1756698661950,-480.0,0.00016847,2]
[382662021,1756698661959,-678.6,0.00016847,2]
[382662022,1756698661969,-480.0,0.00016847,2]
[382662023,1756698661979,-480.0,0.00016847,2]
[382662024,1756698661988,-1119.48,0.00016847,2]
[382662025,1756698661998,-480.0,0.00016847,2]
[382662026,1756698662008,-480.0,0.00016847,2]
[382662027,1756698662018,-480.0,0.00016847,2]
[382662028,1756698662027,-482.51098347,0.00016847,2]
[382662029,1756698662039,-480.0,0.00016847,2]
[382662030,1756698662048,-480.0,0.00016847,2]
[382662031,1756698662058,-543.33,0.00016847,2]
[382662032,1756698662067,-296.77708557,0.00016847,2]
[382662033,1756698662079,-480.0,0.00016847,2]
[382662034,1756698662089,-481.69695637,0.00016847,2]
[382662035,1756698662100,-480.0,0.00016847,2]
[382662036,1756698662110,-740.21,0.00016847,2]
[382662037,1756698662122,-679.18,0.00016847,2]
[382662038,1756698662131,-583.03,0.00016847,2]
[382662039,1756698662141,-480.0,0.00016847,2]
[382662040,1756698662150,-480.0,0.00016847,2]
[382662041,1756698662162,-480.0,0.00016847,2]
[382662042,1756698662171,-591.25,0.00016847,2]
[382662043,1756698662182,-480.0,0.00016847,2]
[382662044,1756698662193,-151.0,0.00016847,2]
[382662045,1756698662204,-151.0,0.00016847,2]
[382662046,1756698662215,-153.453145,0.00016847,2]
[382662047,1756698662225,-480.0,0.00016847,2]
[382662048,1756698662236,-151.0,0.00016847,2]
[382662049,1756698662246,-186.530103,0.00016847,2]
[382662050,1756698662255,-1190.69,0.00016847,2]
[382662051,1756698662265,-480.0,0.00016847,2]
[382662052,1756698662275,-480.0,0.00016847,2]
[382662053,1756698662285,-480.0,0.00016847,2]
[382662054,1756698662294,-480.0,0.00016848,2]
[382662055,1756698662303,-480.0,0.00016848,2]
[382662056,1756698662313,-151.0,0.00016848,2]
[382662057,1756698662322,-151.0,0.00016848,2]
[382662058,1756698662332,-296.769354,0.00016848,2]
[382662059,1756698662341,-151.0,0.00016848,2]
[382662060,1756698662351,-480.0,0.00016848,2]
[382662061,1756698662360,-153.354446,0.00016848,2]
[382662062,1756698662372,-480.0,0.00016848,2]
[382662063,1756698662382,-549.86,0.00016848,2]
[382662064,1756698662392,-213.907037,0.00016848,2]
[382662065,1756698662401,-213.907037,0.00016848,2]
[382662066,1756698662411,-213.907037,0.00016848,2]
[382662067,1756698662420,-480.0,0.00016849,2]
[382662068,1756698662429,-589.94,0.00016849,2]
[382662069,1756698662439,-521.81810482,0.00016849,2]
[382662070,1756698662448,-480.0,0.00016849,2]
[382662071,1756698662458,-480.0,0.00016849,2]
[382662072,1756698662468,-686.54,0.00016849,2]
[382662073,1756698662477,-578.74,0.00016849,2]
[382662074,1756698662487,-480.0,0.00016849,2]
[382662075,1756698662496,-574.56,0.00016849,2]
[382662076,1756698662505,-240.45780543,0.00016857,2]
[382662077,1756698662515,-922.0,0.00016858,2]
[382662078,1756698662524,-189.69645233,0.00016872,2]
[382662079,1756698662533,-393.0,0.00016894,2]
[382662080,1756698662543,-800.0,0.00016895,2]
[382662081,1756698662553,-2988.72556762,0.000169,2]
[382662082,1756698662562,-151.0,0.000169,2]
[382662083,1756698662571,-563.4286864,0.00016919,2]
[382662084,1756698662581,-480.0,0.0001692,2]
[382662085,1756698662591,-480.0,0.0001692,2]
[382662086,1756698662600,-480.0,0.0001692,2]
[382662087,1756698662610,-775.81,0.0001692,2]
[382662088,1756698662621,-480.0,0.0001692,2]
[382662089,1756698662631,-1107.17,0.0001692,2]
[382662090,1756698662641,-480.0,0.00016921,2]
[382662091,1756698662650,-888.74,0.00016921,2]
[382662092,1756698662659,-480.0,0.00016921,2]
[382662093,1756698662669,-480.0,0.00016921,2]
[382662094,1756698662678,-480.0,0.00016921,2]
[382662095,1756698662688,-480.0,0.00016921,2]